[Event "SRB-chW Semifinal 2021"]
[Site "Paracin"]
[Date "2021.03.20"]
[Round "6.15"]
[White "Vujcic, Milena"]
[Black "Gogic, Anastasija"]
[Result "1/2-1/2"]
[ECO "B42"]
[WhiteElo "2069"]
[BlackElo "1868"]
[Annotator "NA"]
[PlyCount "81"]
[EventDate "2021.03.16"]
[EventType "swiss"]
[EventCountry "SRB"]
[SourceTitle "playchess.com"]
[Source "ChessBase"]
[SourceQuality "1"]
[TimeControl "40/5400+30:1800+30"]

1. e4 {[%emt 0:04:29]} c5 {[%emt 0:00:00]} 2. Nf3 {[%emt 0:00:25]} e6 {[%emt 0:00:00]} 3. d4 {[%emt 0:00:07]} cxd4 {[%emt 0:00:00]} 4. Nxd4 {[%emt 0:00:05]} a6 {[%emt 0:00:00]} 5. Bd3 {[%emt 0:00:11]} Nc6 {[%emt 0:00:10]} 6. Nxc6 {[%emt 0:00:39]} dxc6 {[%emt 0:00:06]} 7. O-O {[%emt 0:01:21]} e5 {[%emt 0:01:55]} 8. Qh5 {[%emt 0:03:16]} Bd6 {[%emt 0:16:46]} 9. Nd2 {[%emt 0:07:44]} Qe7 {[%emt 0:13:57]} 10. Nc4 {[%emt 0:00:31]} Bc7 {[%emt 0:00:35]} 11. b3 {[%emt 0:03:14]} g6 {[%emt 0:07:17]} 12. Qe2 {[%emt 0:00:25]} b5 {[%emt 0:01:25]} 13. Ne3 {[%emt 0:00:18]} Nf6 {[%emt 0:02:27]} 14. a4 {[%emt 0:04:17]} Rb8 {[%emt 0:11:39]} 15. axb5 {[%emt 0:00:49]} axb5 {[%emt 0:01:06]} 16. Ra7 {[%emt 0:05:22]} O-O {[%emt 0:03:45]} 17. Ba3 {[%emt 0:02:01]} b4 {[%emt 0:00:02]} 18. Bb2 {[%emt 0:00:07]} Rb7 {[%emt 0:00:13]} 19. Rfa1 {[%emt 0:01:15]} Bb6 {[%emt 0:01:06]} 20. Rxb7 {[%emt 0:00:39]} Bxb7 {[%emt 0:00:13]} 21. Ng4 {[%emt 0:06:08]} Nxg4 {[%emt 0:03:15]} 22. Qxg4 {[%emt 0:00:06]} Bd4 {[%emt 0:00:30]} 23. Bxd4 {[%emt 0:00:09]} exd4 {[%emt 0:00:01]} 24. Ra7 {[%emt 0:01:54]} Qc7 {[%emt 0:03:52]} 25. e5 {[%emt 0:03:40]} Qb6 {[%emt 0:01:59]} 26. Ra1 {[%emt 0:00:41]} c5 {[%emt 0:01:55]} 27. f4 {[%emt 0:01:24]} Qe6 {[%emt 0:05:26]} 28. Qg3 {[%emt 0:00:54]} Re8 {[%emt 0:05:27]} 29. Re1 {[%emt 0:02:39]} Kh8 {[%emt 0:00:15]} 30. Qg5 {[%emt 0:02:04]} f5 {[%emt 0:06:29]} 31. h4 {[%emt 0:01:32]} Qe7 {[%emt 0:03:37]} 32. Qxe7 {[%emt 0:06:45]} Rxe7 {[%emt 0:00:01]} 33. Ra1 {[%emt 0:00:08]} Bd5 {[%emt 0:03:12]} 34. Kf2 {[%emt 0:00:47]} Kg7 {[%emt 0:00:10]} 35. h5 {[%emt 0:00:49]} Be4 {[%emt 0:03:52]} 36. hxg6 {[%emt 0:00:13]} hxg6 {[%emt 0:00:24]} 37. Ra5 {[%emt 0:00:50]} Rc7 {[%emt 0:00:29]} 38. Ra6 {[%emt 0:03:36]} Kh7 {[%emt 0:02:35]} 39. g4 {[%emt 0:03:00]} Kg7 {[%emt 0:00:27]} 40. gxf5 {[%emt 0:00:00]} gxf5 {[%emt 0:00:00]} 41. Kg3 {[%emt 0:00:59]} 1/2-1/2

[Event "SRB-chW Semifinal 2021"]
[Site "Paracin"]
[Date "2021.03.20"]
[Round "7.11"]
[White "Manakova, Maria"]
[Black "Gajcin, Marina"]
[Result "1/2-1/2"]
[ECO "D81"]
[WhiteElo "2271"]
[BlackElo "2227"]
[Annotator "NA"]
[PlyCount "72"]
[EventDate "2021.03.16"]
[EventType "swiss"]
[EventCountry "SRB"]
[SourceTitle "playchess.com"]
[Source "ChessBase"]
[SourceQuality "1"]
[TimeControl "40/5400+30:1800+30"]

1. d4 {[%emt 0:00:00]} Nf6 {[%emt 0:00:00]} 2. c4 {[%emt 0:00:00]} g6 {[%emt 0:00:00]} 3. Nc3 {[%emt 0:00:00]} d5 {[%emt 0:00:00]} 4. Qb3 {[%emt 0:00:24]} dxc4 {[%emt 0:02:23]} 5. Qxc4 {[%emt 0:00:05]} Bg7 {[%emt 0:00:38]} 6. e4 {[%emt 0:00:16]} O-O {[%emt 0:05:35]} 7. Be2 {[%emt 0:00:17]} Bg4 {[%emt 0:17:37]} 8. Bxg4 {[%emt 0:04:44]} Nxg4 {[%emt 0:00:06]} 9. Nf3 {[%emt 0:02:23]} Nd7 {[%emt 0:09:37]} 10. h3 {[%emt 0:01:52]} Ngf6 {[%emt 0:00:37]} 11. Be3 {[%emt 0:01:18]} Nb6 {[%emt 0:03:32]} 12. Qb3 {[%emt 0:00:50]} Ne8 {[%emt 0:15:55]} 13. Rd1 {[%emt 0:05:39]} a5 {[%emt 0:02:10]} 14. a4 {[%emt 0:00:19]} Nd6 {[%emt 0:02:51]} 15. h4 {[%emt 0:05:28]} Ndc4 {[%emt 0:01:11]} 16. Bc1 {[%emt 0:00:20]} Qd6 {[%emt 0:03:00]} 17. h5 {[%emt 0:21:49]} Qb4 {[%emt 0:02:06]} 18. Qxb4 {[%emt 0:03:28]} axb4 {[%emt 0:00:05]} 19. Ne2 {[%emt 0:00:18]} b3 {[%emt 0:02:40]} 20. hxg6 {[%emt 0:00:17]} hxg6 {[%emt 0:00:47]} 21. Rd3 {[%emt 0:00:13]} Rxa4 {[%emt 0:02:06]} 22. Rxb3 {[%emt 0:00:06]} Ra1 {[%emt 0:01:03]} 23. O-O {[%emt 0:00:28]} Rfa8 {[%emt 0:01:55]} 24. g3 {[%emt 0:04:00]} c6 {[%emt 0:07:28]} 25. Bf4 {[%emt 0:11:58]} e5 {[%emt 0:00:10]} 26. dxe5 {[%emt 0:01:03]} Nd7 {[%emt 0:06:16]} 27. Rxb7 {[%emt 0:00:43]} Ndxe5 {[%emt 0:00:20]} 28. Nxe5 {[%emt 0:01:06]} Nxe5 {[%emt 0:00:04]} 29. Rxa1 {[%emt 0:00:37]} Rxa1+ {[%emt 0:00:01]} 30. Kg2 {[%emt 0:00:05]} Nd3 {[%emt 0:00:42]} 31. Rb8+ {[%emt 0:17:14]} Kh7 {[%emt 0:00:01]} 32. Rb3 {[%emt 0:00:42]} Nxb2 {[%emt 0:02:01]} 33. Be3 {[%emt 0:03:40]} Nc4 {[%emt 0:05:58]} 34. Bd4 {[%emt 0:01:00]} Re1 {[%emt 0:02:04]} 35. Bxg7 {[%emt 0:00:27]} Kxg7 {[%emt 0:00:23]} 36. Rc3 {[%emt 0:02:10]} Nd2 {[%emt 0:00:46]} 1/2-1/2

[Event "SRB-chW Semifinal 2021"]
[Site "Paracin"]
[Date "2021.03.20"]
[Round "7.12"]
[White "Ostojic, Katarina"]
[Black "Srdanovic, Jovana"]
[Result "1/2-1/2"]
[ECO "D15"]
[WhiteElo "2013"]
[BlackElo "2109"]
[Annotator "NA"]
[PlyCount "40"]
[EventDate "2021.03.16"]
[EventType "swiss"]
[EventCountry "SRB"]
[SourceTitle "playchess.com"]
[Source "ChessBase"]
[SourceQuality "1"]
[TimeControl "40/5400+30:1800+30"]

1. d4 {[%emt 0:00:00]} d5 {[%emt 0:00:00]} 2. c4 {[%emt 0:00:00]} c6 {[%emt 0:00:00]} 3. Nc3 {[%emt 0:00:12]} Nf6 {[%emt 0:00:05]} 4. Nf3 {[%emt 0:00:06]} a6 {[%emt 0:00:10]} 5. e3 {[%emt 0:00:37]} Bf5 {[%emt 0:01:08]} 6. Bd3 {[%emt 0:02:51]} Bxd3 {[%emt 0:05:21]} 7. Qxd3 {[%emt 0:00:08]} e6 {[%emt 0:00:16]} 8. O-O {[%emt 0:02:54]} Nbd7 {[%emt 0:01:49]} 9. e4 {[%emt 0:06:50]} dxe4 {[%emt 0:03:53]} 10. Nxe4 {[%emt 0:00:12]} Nxe4 {[%emt 0:00:03]} 11. Qxe4 {[%emt 0:00:08]} Nf6 {[%emt 0:00:27]} 12. Qe2 {[%emt 0:04:33]} Be7 {[%emt 0:01:24]} 13. Re1 {[%emt 0:09:00]} O-O {[%emt 0:07:51]} 14. Bg5 {[%emt 0:04:45]} h6 {[%emt 0:02:55]} 15. Bf4 {[%emt 0:05:07]} Re8 {[%emt 0:04:09]} 16. Rad1 {[%emt 0:02:43]} Qa5 {[%emt 0:02:18]} 17. a3 {[%emt 0:04:46]} Qf5 {[%emt 0:12:50]} 18. Qe5 {[%emt 0:04:56]} Qc2 {[%emt 0:02:47]} 19. Qe2 {[%emt 0:00:22]} Qf5 {[%emt 0:09:15]} 20. Qe5 {[%emt 0:02:30]} Qc2 {[%emt 0:01:16]} 1/2-1/2

[Event "SRB-chW Semifinal 2021"]
[Site "Paracin"]
[Date "2021.03.20"]
[Round "7.13"]
[White "Vujcic, Milena"]
[Black "Djukic, Sandra"]
[Result "1/2-1/2"]
[ECO "B15"]
[WhiteElo "2069"]
[BlackElo "2137"]
[Annotator "NA"]
[PlyCount "74"]
[EventDate "2021.03.16"]
[EventType "swiss"]
[EventCountry "SRB"]
[SourceTitle "playchess.com"]
[Source "ChessBase"]
[SourceQuality "1"]
[TimeControl "40/5400+30:1800+30"]

1. e4 c6 2. d4 d5 3. Nc3 dxe4 4. Nxe4 Nf6 5. Nxf6+ exf6 6. c3 Bd6 7. Bd3 O-O 8. Ne2 Re8 9. O-O Nd7 10. Qc2 Nf8 11. Be3 Qc7 12. h3 Be6 13. c4 Ng6 14. Bf5 Qd7 15. Bxe6 Qxe6 16. Rfe1 Bc7 17. Rad1 Qd6 18. Ng3 h5 19. d5 c5 20. b4 b6 21. bxc5 bxc5 22. Qa4 h4 23. Nf1 Reb8 24. Qa3 Rb4 25. Rc1 Ne5 26. Nd2 Nd7 27. Nf3 Ne5 28. Nd2 f5 29. Rc2 a5 30. Bf4 f6 31. Qe3 Re8 32. Kh1 Rbb8 33. Nb3 Bb6 34. Rce2 Qd7 35. Qc3 a4 36. Nd2 Bc7 37. Bh2 Ra8 1/2-1/2

[Event "SRB-chW Semifinal 2021"]
[Site "Paracin"]
[Date "2021.03.20"]
[Round "7.14"]
[White "Chelushkina, Irina"]
[Black "Grozdanovic, Anastasia"]
[Result "1-0"]
[ECO "A06"]
[WhiteElo "2203"]
[BlackElo "1817"]
[Annotator "NA"]
[PlyCount "150"]
[EventDate "2021.03.16"]
[EventType "swiss"]
[EventCountry "SRB"]
[SourceTitle "playchess.com"]
[Source "ChessBase"]
[SourceQuality "1"]
[TimeControl "40/5400+30:1800+30"]

1. g3 {[%emt 0:01:59]} d5 {[%emt 0:00:00]} 2. Nf3 {[%emt 0:00:04]} c5 {[%emt 0:00:00]} 3. c4 {[%emt 0:00:12]} d4 {[%emt 0:00:50]} 4. Bg2 {[%emt 0:00:05]} Nc6 {[%emt 0:00:14]} 5. d3 {[%emt 0:00:05]} e5 {[%emt 0:00:49]} 6. a3 {[%emt 0:00:05]} f6 {[%emt 0:06:02]} 7. O-O {[%emt 0:03:34]} Be6 {[%emt 0:00:41]} 8. e3 {[%emt 0:00:07]} a5 {[%emt 0:01:26]} 9. exd4 {[%emt 0:00:18]} cxd4 {[%emt 0:00:05]} 10. Re1 {[%emt 0:00:27]} Qd7 {[%emt 0:03:36]} 11. Nbd2 {[%emt 0:00:20]} Bd6 {[%emt 0:01:43]} 12. Ne4 {[%emt 0:01:25]} Nge7 {[%emt 0:00:40]} 13. Rb1 {[%emt 0:01:11]} O-O {[%emt 0:01:23]} 14. Bd2 {[%emt 0:01:06]} b6 {[%emt 0:14:48]} 15. Nxd6 {[%emt 0:00:23]} Qxd6 {[%emt 0:00:07]} 16. b4 {[%emt 0:00:29]} axb4 {[%emt 0:00:27]} 17. axb4 {[%emt 0:00:02]} Ra7 {[%emt 0:06:39]} 18. b5 {[%emt 0:01:34]} Nd8 {[%emt 0:05:10]} 19. Bb4 {[%emt 0:00:10]} Qd7 {[%emt 0:00:37]} 20. Ra1 {[%emt 0:00:41]} Rxa1 {[%emt 0:01:25]} 21. Qxa1 {[%emt 0:00:04]} Rf7 {[%emt 0:03:35]} 22. Nd2 {[%emt 0:01:32]} Nc8 {[%emt 0:03:41]} 23. Qb2 {[%emt 0:03:24]} h6 {[%emt 0:04:33]} 24. Ne4 {[%emt 0:05:39]} Kh7 {[%emt 0:06:21]} 25. Qc1 {[%emt 0:07:45]} Nb7 {[%emt 0:04:44]} 26. f4 {[%emt 0:00:18]} Ne7 {[%emt 0:07:29]} 27. Nf2 {[%emt 0:02:02]} Ng6 {[%emt 0:01:09]} 28. h4 {[%emt 0:07:03]} Bg4 {[%emt 0:03:17]} 29. Bc6 {[%emt 0:02:02]} Qc8 {[%emt 0:00:35]} 30. Bd5 {[%emt 0:02:26]} Rc7 {[%emt 0:01:15]} 31. fxe5 {[%emt 0:01:10]} fxe5 {[%emt 0:02:56]} 32. Be4 {[%emt 0:08:04]} Bf5 {[%emt 0:01:05]} 33. Bg2 {[%emt 0:00:13]} Nc5 {[%emt 0:02:47]} 34. h5 {[%emt 0:02:53]} Nf8 {[%emt 0:00:25]} 35. Rxe5 {[%emt 0:02:05]} Nxd3 {[%emt 0:00:36]} 36. Nxd3 {[%emt 0:00:05]} Bxd3 {[%emt 0:00:04]} 37. Qf4 {[%emt 0:01:04]} Rxc4 {[%emt 0:06:45]} 38. Bxf8 {[%emt 0:00:57]} Rc1+ {[%emt 0:01:32]} 39. Kh2 {[%emt 0:00:06]} Rc7 {[%emt 0:01:07]} 40. Bd6 {[%emt 0:00:00]} Rc2 {[%emt 0:00:00]} 41. Qxd4 {[%emt 0:04:39]} Rxg2+ {[%emt 0:11:43]} 42. Kxg2 {[%emt 0:00:20]} Qc2+ {[%emt 0:00:06]} 43. Qf2 {[%emt 0:08:15]} Be4+ {[%emt 0:00:29]} 44. Rxe4 {[%emt 0:00:05]} Qxe4+ {[%emt 0:00:03]} 45. Kh2 {[%emt 0:01:44]} Qd5 {[%emt 0:02:41]} 46. Qc2+ {[%emt 0:01:32]} Kh8 {[%emt 0:04:06]} 47. Qg6 {[%emt 0:03:30]} Qxb5 {[%emt 0:00:39]} 48. Qg4 {[%emt 0:10:29]} Qb2+ {[%emt 0:06:39]} 49. Kh3 {[%emt 0:00:17]} Qb1 {[%emt 0:00:15]} 50. Qf3 {[%emt 0:00:27]} Qe1 {[%emt 0:03:07]} 51. g4 {[%emt 0:03:14]} b5 {[%emt 0:00:22]} 52. Bg3 {[%emt 0:00:22]} Qb4 {[%emt 0:00:40]} 53. Be5 {[%emt 0:00:48]} Qe7 {[%emt 0:01:02]} 54. Qa8+ {[%emt 0:01:50]} Kh7 {[%emt 0:00:07]} 55. Qe4+ {[%emt 0:00:07]} Kh8 {[%emt 0:01:36]} 56. Qe3 {[%emt 0:00:49]} Kg8 {[%emt 0:00:29]} 57. Qb3+ {[%emt 0:00:34]} Kh8 {[%emt 0:00:27]} 58. Qxb5 {[%emt 0:00:25]} Qa3+ {[%emt 0:00:11]} 59. Bg3 {[%emt 0:02:16]} Qa1 {[%emt 0:01:13]} 60. Qe8+ {[%emt 0:00:15]} Kh7 {[%emt 0:00:05]} 61. Qe4+ {[%emt 0:00:02]} Kh8 {[%emt 0:00:17]} 62. Kg2 {[%emt 0:00:36]} Qa2+ {[%emt 0:01:08]} 63. Bf2 {[%emt 0:01:53]} Qb2 {[%emt 0:00:50]} 64. Kg3 {[%emt 0:00:45]} Qb8+ {[%emt 0:00:40]} 65. Qf4 {[%emt 0:00:13]} Qb3+ {[%emt 0:00:18]} 66. Be3 {[%emt 0:00:08]} Qd1 {[%emt 0:01:12]} 67. Bd4 {[%emt 0:02:31]} Qe1+ {[%emt 0:00:25]} 68. Qf2 {[%emt 0:00:05]} Qe7 {[%emt 0:00:14]} 69. Qe3 {[%emt 0:00:34]} Qc7+ {[%emt 0:01:02]} 70. Qe5 {[%emt 0:00:25]} Qb7 {[%emt 0:00:17]} 71. g5 {[%emt 0:01:42]} Qb3+ {[%emt 0:01:23]} 72. Bc3 {[%emt 0:00:04]} Qf7 {[%emt 0:01:29]} 73. gxh6 {[%emt 0:00:26]} Kg8 {[%emt 0:00:13]} 74. Qxg7+ {[%emt 0:00:19]} Qxg7+ {[%emt 0:00:03]} 75. hxg7 {[%emt 0:00:01]} Kh7 {[%emt 0:00:08]} 1-0

[Event "SRB-chW Semifinal 2021"]
[Site "Paracin"]
[Date "2021.03.20"]
[Round "7.15"]
[White "Djordjevic, Nevena"]
[Black "Dimitrijevic, Andjela"]
[Result "1-0"]
[ECO "D20"]
[WhiteElo "1999"]
[BlackElo "1830"]
[Annotator "NA"]
[PlyCount "77"]
[EventDate "2021.03.16"]
[EventType "swiss"]
[EventCountry "SRB"]
[SourceTitle "playchess.com"]
[Source "ChessBase"]
[SourceQuality "1"]
[TimeControl "40/5400+30:1800+30"]

1. d4 {[%emt 0:00:00]} d5 {[%emt 0:00:00]} 2. c4 {[%emt 0:00:00]} dxc4 {[%emt 0:00:44]} 3. e3 {[%emt 0:00:00]} e5 {[%emt 0:00:54]} 4. Bxc4 {[%emt 0:00:00]} exd4 {[%emt 0:00:19]} 5. exd4 {[%emt 0:00:03]} Bd6 {[%emt 0:00:11]} 6. Nf3 {[%emt 0:00:05]} Nf6 {[%emt 0:00:25]} 7. Qe2+ {[%emt 0:00:06]} Qe7 {[%emt 0:10:17]} 8. Qxe7+ {[%emt 0:00:07]} Bxe7 {[%emt 0:01:11]} 9. O-O {[%emt 0:00:04]} O-O {[%emt 0:02:37]} 10. Re1 {[%emt 0:00:04]} Bd6 {[%emt 0:03:06]} 11. Bg5 {[%emt 0:00:08]} Nfd7 {[%emt 0:18:21]} 12. Ne5 {[%emt 0:14:43]} Nb6 {[%emt 0:05:12]} 13. Bb3 {[%emt 0:02:51]} c5 {[%emt 0:14:44]} 14. Nxf7 {[%emt 0:22:31]} Bxh2+ {[%emt 0:08:24]} 15. Kxh2 {[%emt 0:00:58]} c4 {[%emt 0:00:08]} 16. Bc2 {[%emt 0:05:52]} Kxf7 {[%emt 0:02:16]} 17. Nc3 {[%emt 0:15:26]} Kg8 {[%emt 0:17:18]} 18. f3 {[%emt 0:08:43]} Na6 {[%emt 0:07:13]} 19. Be4 {[%emt 0:04:42]} Nc7 {[%emt 0:04:23]} 20. Be7 {[%emt 0:08:45]} Rf7 {[%emt 0:01:36]} 21. Bc5 {[%emt 0:02:24]} Ne6 {[%emt 0:00:38]} 22. Nb5 {[%emt 0:04:21]} Nd7 {[%emt 0:00:30]} 23. Bd5 {[%emt 0:02:35]} Ndxc5 {[%emt 0:00:09]} 24. dxc5 {[%emt 0:00:16]} Re7 {[%emt 0:00:49]} 25. Nd4 {[%emt 0:03:23]} Kf7 {[%emt 0:00:14]} 26. Nf5 {[%emt 0:00:11]} Bd7 {[%emt 0:00:44]} 27. Nxe7 {[%emt 0:00:23]} Kxe7 {[%emt 0:00:00]} 28. Bxb7 {[%emt 0:00:47]} Rb8 {[%emt 0:00:55]} 29. c6 {[%emt 0:01:29]} Bc8 {[%emt 0:00:18]} 30. Rad1 {[%emt 0:00:27]} Bxb7 31. Rd7+ {[%emt 0:00:15]} Kf6 {[%emt 0:00:49]} 32. cxb7 {[%emt 0:02:37]} Nc5 {[%emt 0:00:28]} 33. Rc7 {[%emt 0:00:33]} Nd3 {[%emt 0:00:28]} 34. Ree7 {[%emt 0:00:41]} Nxb2 {[%emt 0:00:57]} 35. Rc8 {[%emt 0:00:47]} c3 {[%emt 0:00:37]} 36. Rxb8 {[%emt 0:00:26]} c2 {[%emt 0:00:19]} 37. Rc7 {[%emt 0:00:17]} Nd3 {[%emt 0:00:14]} 38. Rf8+ {[%emt 0:00:07]} Kg6 {[%emt 0:00:06]} 39. b8=Q {[%emt 0:00:14]} 1-0

[Event "SRB-chW Semifinal 2021"]
[Site "Paracin"]
[Date "2021.03.21"]
[Round "8.11"]
[White "Ostojic, Katarina"]
[Black "Manakova, Maria"]
[Result "1/2-1/2"]
[ECO "A46"]
[WhiteElo "2013"]
[BlackElo "2271"]
[Annotator "ChessBase"]
[PlyCount "42"]
[EventDate "2021.03.16"]
[EventType "swiss"]
[EventCountry "SRB"]
[SourceTitle "playchess.com"]
[Source "ChessBase"]
[SourceQuality "1"]
[TimeControl "40/5400+30:1800+30"]

1. d4 {[%emt 0:00:00]} Nf6 {[%emt 0:00:28]} 2. Nf3 {[%emt 0:00:00]} e6 {[%emt 0:00:14]} 3. Bf4 {[%emt 0:00:09]} b6 {[%emt 0:03:25]} 4. e3 {[%emt 0:00:30]} Bb7 {[%emt 0:00:06]} 5. h3 {[%emt 0:00:11]} Be7 {[%emt 0:00:55]} 6. Bd3 {[%emt 0:00:40]} O-O {[%emt 0:00:41]} 7. c3 {[%emt 0:00:54]} d5 {[%emt 0:03:48]} 8. Nbd2 {[%emt 0:01:20]} c5 {[%emt 0:00:13]} 9. Qe2 {[%emt 0:00:40]} Nbd7 {[%emt 0:07:25]} 10. O-O {[%emt 0:04:39]} a6 {[%emt 0:05:06]} 11. Ne5 {[%emt 0:15:15]} Nxe5 {[%emt 0:02:53]} 12. dxe5 {[%emt 0:14:38]} Nd7 {[%emt 0:02:56]} 13. Bg3 {[%emt 0:13:14]} Re8 {[%emt 0:16:50]} 14. f4 {[%emt 0:03:58]} g6 {[%emt 0:01:28]} 15. Nf3 {[%emt 0:05:27]} b5 {[%emt 0:04:07]} 16. h4 {[%emt 0:01:50]} c4 {[%emt 0:05:14]} 17. Bc2 {[%emt 0:00:42]} Nc5 {[%emt 0:04:11]} 18. Rad1 {[%emt 0:05:53]} h5 {[%emt 0:12:47]} 19. Be1 {[%emt 0:01:46]} Kg7 {[%emt 0:01:04]} 20. Bb1 {[%emt 0:11:54]} Qc7 {[%emt 0:00:49]} 21. Nd4 {[%emt 0:01:47]} Ne4 {[%emt 0:02:43]} 1/2-1/2

[Event "SRB-chW Semifinal 2021"]
[Site "Paracin"]
[Date "2021.03.21"]
[Round "8.12"]
[White "Gajcin, Marina"]
[Black "Chelushkina, Irina"]
[Result "1-0"]
[ECO "B30"]
[WhiteElo "2227"]
[BlackElo "2203"]
[Annotator "ChessBase"]
[PlyCount "97"]
[EventDate "2021.03.16"]
[EventType "swiss"]
[EventCountry "SRB"]
[SourceTitle "playchess.com"]
[Source "ChessBase"]
[SourceQuality "1"]
[TimeControl "40/5400+30:1800+30"]

1. e4 {[%emt 0:00:00]} c5 {[%emt 0:00:06]} 2. Nf3 {[%emt 0:00:00]} Nc6 {[%emt 0:00:04]} 3. Bb5 {[%emt 0:00:12]} e6 {[%emt 0:01:02]} 4. O-O {[%emt 0:09:56]} Nge7 {[%emt 0:00:25]} 5. d4 {[%emt 0:01:13]} cxd4 {[%emt 0:00:32]} 6. Nxd4 {[%emt 0:00:12]} Qb6 {[%emt 0:04:41]} 7. Nxc6 {[%emt 0:04:12]} bxc6 {[%emt 0:05:20]} 8. Be2 {[%emt 0:07:10]} Ng6 {[%emt 0:02:44]} 9. Nc3 {[%emt 0:03:20]} Be7 {[%emt 0:00:54]} 10. Na4 {[%emt 0:10:13]} Qa5 {[%emt 0:03:53]} 11. c4 {[%emt 0:00:30]} O-O {[%emt 0:00:49]} 12. Be3 {[%emt 0:02:12]} d6 {[%emt 0:00:57]} 13. a3 {[%emt 0:04:11]} Qe5 {[%emt 0:09:35]} 14. Nc3 {[%emt 0:11:43]} Nf4 {[%emt 0:00:47]} 15. Bf3 {[%emt 0:00:47]} Qf6 {[%emt 0:02:51]} 16. e5 {[%emt 0:05:16]} dxe5 {[%emt 0:02:33]} 17. Bxc6 {[%emt 0:01:39]} Rb8 {[%emt 0:00:03]} 18. b4 {[%emt 0:02:21]} Qg6 {[%emt 0:02:36]} 19. Qf3 {[%emt 0:02:04]} Rb6 {[%emt 0:03:23]} 20. Bxb6 {[%emt 0:01:20]} axb6 {[%emt 0:00:01]} 21. Ne2 {[%emt 0:07:21]} Bg5 {[%emt 0:02:34]} 22. a4 {[%emt 0:03:04]} f5 {[%emt 0:01:08]} 23. a5 {[%emt 0:00:45]} bxa5 {[%emt 0:00:20]} 24. Rxa5 {[%emt 0:00:13]} Qf6 {[%emt 0:04:11]} 25. Nxf4 {[%emt 0:00:41]} Bxf4 {[%emt 0:00:02]} 26. Rd1 {[%emt 0:02:35]} Qe7 {[%emt 0:01:06]} 27. c5 {[%emt 0:00:49]} Qc7 {[%emt 0:00:34]} 28. g3 {[%emt 0:04:33]} Bg5 {[%emt 0:02:36]} 29. Ba8 {[%emt 0:00:43]} e4 {[%emt 0:00:56]} 30. Qa3 {[%emt 0:01:22]} Qe5 {[%emt 0:03:54]} 31. Qa1 {[%emt 0:00:51]} Qb8 {[%emt 0:00:02]} 32. b5 {[%emt 0:01:59]} e3 {[%emt 0:04:01]} 33. Bf3 {[%emt 0:03:17]} exf2+ {[%emt 0:03:43]} 34. Kxf2 {[%emt 0:00:08]} f4 {[%emt 0:02:03]} 35. g4 {[%emt 0:00:26]} h5 {[%emt 0:04:40]} 36. h3 {[%emt 0:03:05]} Bf6 {[%emt 0:00:58]} 37. Qc1 {[%emt 0:01:34]} Qe5 {[%emt 0:03:10]} 38. b6 {[%emt 0:00:37]} Bb7 {[%emt 0:09:49]} 39. Ra2 {[%emt 0:00:26]} Bxf3 {[%emt 0:06:22]} 40. Kxf3 {[%emt 0:00:00]} Qg5 {[%emt 0:00:00]} 41. Qc2 {[%emt 0:06:21]} e5 {[%emt 0:06:07]} 42. Ra4 {[%emt 0:07:52]} Be7 {[%emt 0:02:42]} 43. b7 {[%emt 0:14:29]} Qh4 {[%emt 0:00:29]} 44. Qb3+ {[%emt 0:02:07]} Kh8 {[%emt 0:01:57]} 45. b8=Q {[%emt 0:00:47]} Qxh3+ {[%emt 0:01:21]} 46. Ke4 {[%emt 0:01:01]} Qg2+ {[%emt 0:00:51]} 47. Kd3 {[%emt 0:00:05]} f3 {[%emt 0:10:55]} 48. Qxe5 {[%emt 0:00:21]} Rd8+ {[%emt 0:02:44]} 49. Ke4 1-0

[Event "SRB-chW Semifinal 2021"]
[Site "Paracin"]
[Date "2021.03.21"]
[Round "8.13"]
[White "Srdanovic, Jovana"]
[Black "Drljevic, Ljilja"]
[Result "0-1"]
[ECO "A46"]
[WhiteElo "2109"]
[BlackElo "2200"]
[Annotator "ChessBase"]
[PlyCount "58"]
[EventDate "2021.03.16"]
[EventType "swiss"]
[EventCountry "SRB"]
[SourceTitle "playchess.com"]
[Source "ChessBase"]
[SourceQuality "1"]
[TimeControl "40/5400+30:1800+30"]

1. d4 Nf6 2. Nf3 e6 3. Bf4 c5 4. e3 Be7 5. Nbd2 Nh5 6. Bxb8 Rxb8 7. Ne5 Nf6 8. c3 O-O 9. Bd3 d6 10. Nef3 b5 11. O-O Bd7 12. Re1 b4 13. dxc5 bxc3 14. bxc3 d5 15. Ne5 Be8 16. Qc2 Qc7 17. Nef3 Qxc5 18. c4 Qa3 19. Nb3 Ba4 20. Qe2 Rfc8 21. Nfd2 Bd7 22. Red1 a5 23. cxd5 Nxd5 24. Nc4 Qa4 25. Rac1 Bf6 26. Qd2 Bb5 27. Ncxa5 Bc3 28. Qc2 g6 29. Bxb5 Qxb5 0-1

[Event "SRB-chW Semifinal 2021"]
[Site "Paracin"]
[Date "2021.03.21"]
[Round "8.14"]
[White "Gogic, Anastasija"]
[Black "Djukic, Sandra"]
[Result "0-1"]
[ECO "A13"]
[WhiteElo "1868"]
[BlackElo "2137"]
[Annotator "ChessBase"]
[PlyCount "84"]
[EventDate "2021.03.16"]
[EventType "swiss"]
[EventCountry "SRB"]
[SourceTitle "playchess.com"]
[Source "ChessBase"]
[SourceQuality "1"]
[TimeControl "40/5400+30:1800+30"]

1. c4 {[%emt 0:00:00]} e6 {[%emt 0:00:00]} 2. g3 {[%emt 0:00:00]} d5 {[%emt 0:00:08]} 3. Bg2 {[%emt 0:00:55]} Nf6 {[%emt 0:00:13]} 4. Nf3 {[%emt 0:01:56]} c5 {[%emt 0:02:12]} 5. O-O {[%emt 0:04:26]} Nc6 {[%emt 0:08:03]} 6. d3 {[%emt 0:07:46]} Be7 {[%emt 0:02:06]} 7. Nbd2 {[%emt 0:12:28]} O-O {[%emt 0:03:13]} 8. b3 {[%emt 0:10:43]} d4 {[%emt 0:12:09]} 9. Ba3 {[%emt 0:04:54]} h6 {[%emt 0:03:10]} 10. Ne1 {[%emt 0:01:37]} Qc7 {[%emt 0:11:29]} 11. e3 {[%emt 0:02:55]} e5 {[%emt 0:20:26]} 12. Ne4 {[%emt 0:09:31]} Nxe4 {[%emt 0:05:33]} 13. Bxe4 {[%emt 0:01:09]} Be6 {[%emt 0:00:31]} 14. Bd5 {[%emt 0:09:41]} Bh3 {[%emt 0:06:50]} 15. Ng2 {[%emt 0:00:07]} Kh7 {[%emt 0:07:33]} 16. Qh5 {[%emt 0:03:44]} Bxg2 {[%emt 0:09:06]} 17. Kxg2 {[%emt 0:01:39]} g6 {[%emt 0:00:10]} 18. Qh3 {[%emt 0:00:44]} Kg7 {[%emt 0:02:10]} 19. Bc1 {[%emt 0:03:20]} h5 {[%emt 0:00:19]} 20. f4 {[%emt 0:01:31]} exf4 {[%emt 0:01:50]} 21. Rxf4 {[%emt 0:03:30]} Nb4 {[%emt 0:01:40]} 22. Bd2 {[%emt 0:08:22]} Nxd5 {[%emt 0:00:45]} 23. cxd5 {[%emt 0:00:10]} dxe3 {[%emt 0:01:09]} 24. Bc3+ {[%emt 0:00:59]} Kg8 {[%emt 0:00:04]} 25. Raf1 {[%emt 0:01:01]} Qd6 {[%emt 0:00:19]} 26. Rf6 {[%emt 0:07:14]} Qxd5+ {[%emt 0:00:08]} 27. Kg1 {[%emt 0:00:00]} Bxf6 {[%emt 0:00:38]} 28. Bxf6 {[%emt 0:00:26]} e2 {[%emt 0:00:06]} 29. Re1 {[%emt 0:00:21]} Rfe8 {[%emt 0:01:21]} 30. Qh4 {[%emt 0:00:52]} Qxd3 {[%emt 0:00:08]} 31. Qg5 {[%emt 0:02:14]} Qe3+ {[%emt 0:00:09]} 32. Kg2 {[%emt 0:00:40]} Qxg5 {[%emt 0:00:56]} 33. Bxg5 {[%emt 0:00:02]} Re4 {[%emt 0:00:09]} 34. Kf2 {[%emt 0:00:24]} Rae8 {[%emt 0:00:04]} 35. Bf6 {[%emt 0:00:18]} R8e6 {[%emt 0:00:12]} 36. Bc3 {[%emt 0:00:14]} b5 {[%emt 0:00:10]} 37. h3 {[%emt 0:01:14]} g5 {[%emt 0:00:15]} 38. Bd2 {[%emt 0:00:28]} f6 {[%emt 0:00:06]} 39. a3 {[%emt 0:00:18]} Kf7 {[%emt 0:00:16]} 40. Rc1 {[%emt 0:00:00]} e1=Q+ {[%emt 0:00:00]} 41. Bxe1 {[%emt 0:01:03]} Re2+ {[%emt 0:00:33]} 42. Kf1 {[%emt 0:00:23]} Rxe1+ {[%emt 0:00:11]} 0-1